bitfinex-derivatives/quotes_ETHF0:USTF0_20250810
["timestamp","ask_amount","ask_price","bid_price","bid_amount"]
[1754857644257,1.05907922,4227.5,4227.4,0.2745]
[1754857644757,0.6452,4227.3,4226.6,0.2745]
[1754857645054,0.47318,4226.1,4225.9,0.2745]
[1754857645249,0.47323,4225.6,4225.5,0.6924]
[1754857645450,0.6452,4225.6,4225.5,0.2745]
[1754857645962,0.6452,4225.6,4224.6,0.2745]
[1754857645963,0.2603,4225.3,4224.6,0.2745]
[1754857646260,0.2629,4225.5,4224.4,0.6939]
[1754857646261,0.47332,4224.8,4224.4,0.6939]
[1754857646462,0.47332,4224.8,4224.5,0.4179]
[1754857646463,0.3849,4224.7,4224.5,0.4179]
[1754857646759,0.3849,4224.7,4224.6,0.2745]
[1754857647154,0.6452,4224.7,4224.6,0.2745]
[1754857647360,0.47331,4224.9,4224.6,0.9684]
[1754857647556,0.47334,4224.6,4224.1,0.6939]
[1754857647751,0.47334,4224.6,4224.2,0.9684]
[1754857647955,0.47334,4224.6,4224.0,0.47341]
[1754857648254,0.47334,4224.6,4224.5,0.9684]
[1754857648457,0.3849,4225.1,4224.7,0.2745]
[1754857648651,1.44346,4225.4,4224.0,0.47341]
[1754857648652,0.4733,4225.0,4224.9,0.6924]
[1754857648858,0.73365,4224.5,4224.4,0.6924]
[1754857649058,1.11855,4224.5,4224.4,0.6924]
[1754857649256,0.6478,4224.4,4223.7,0.4179]
[1754857649454,0.47339,4224.2,4223.5,0.47346]
[1754857649654,0.47341,4224.0,4223.9,0.276]
[1754857650359,0.47341,4224.0,4223.9,0.9684]
[1754857652061,0.73371,4224.0,4223.9,0.9684]
[1754857652764,1.11861,4224.0,4223.9,0.9684]
[1754857654257,1.11861,4224.0,4223.9,0.2745]
[1754857654458,0.47351,4223.2,4223.0,0.6939]
[1754857654654,0.47355,4222.8,4222.2,0.276]
[1754857654962,0.47355,4222.8,4222.6,0.74957]
[1754857655259,0.2603,4223.0,4222.1,20.455]
[1754857655260,0.47354,4222.9,4222.7,0.9684]
[1754857655464,0.73383,4223.0,4222.8,0.9247]
[1754857655766,0.73383,4223.0,4222.9,0.9247]
[1754857656268,0.47349,4223.4,4223.1,0.4735]
[1754857656462,0.72988,4223.5,4223.4,0.9247]
[1754857656766,1.18351,4224.2,4223.4,0.9247]
[1754857656767,0.47346,4223.7,4223.4,0.47348]
[1754857656968,0.47346,4223.7,4223.5,0.9247]
[1754857657264,0.47352,4223.1,4222.9,0.2658]
[1754857657467,0.72992,4223.1,4223.0,0.9247]
[1754857659369,0.2564,4223.1,4223.0,0.9247]
[1754857661872,0.4735,4223.3,4223.1,1.39821]
[1754857662068,0.4735,4223.3,4223.2,0.9247]
[1754857662371,1.1275,4223.3,4223.2,0.9247]
[1754857662665,0.3976,4224.0,4223.5,0.9247]
[1754857662867,0.47344,4223.8,4223.6,0.9247]
[1754857663062,1.12744,4223.8,4223.7,0.9247]
[1754857663664,0.654,4223.8,4223.7,0.9247]
[1754857663866,0.47342,4224.0,4223.8,0.2658]
[1754857664175,0.47342,4224.0,4223.2,0.9247]
[1754857664471,0.47342,4224.0,4223.4,0.6553]
[1754857664669,0.47342,4224.0,4223.7,0.47344]
[1754857664972,1.12742,4224.0,4223.7,0.47344]
[1754857665170,1.12742,4224.0,4223.9,0.9247]
[1754857665369,0.654,4224.0,4223.9,0.9247]
[1754857667074,1.277,4224.0,4223.9,1.5528]
[1754857668171,1.539,4224.0,4223.9,1.2834]
[1754857668473,1.539,4224.0,4223.9,0.8939]
[1754857669276,1.277,4224.0,4223.9,1.2834]
[1754857670673,1.539,4224.0,4223.9,0.8939]
[1754857670974,1.539,4224.0,4223.9,0.7132]
[1754857671474,1.539,4224.0,4223.9,0.8939]
[1754857671671,1.539,4224.0,4223.9,1.2834]
[1754857671873,0.2564,4223.6,4223.1,0.9247]
[1754857672080,0.6059,4223.3,4223.2,1.5528]
[1754857673473,0.3495,4223.3,4223.2,1.5528]
[1754857673671,0.1715,4223.3,4223.2,1.5528]
[1754857675583,1.277,4223.3,4223.2,1.5528]
[1754857676571,0.3495,4223.3,4223.2,1.5528]
[1754857676770,0.72986,4223.6,4223.2,1.5528]
[1754857676976,0.47345,4223.7,4223.6,1.5528]
[1754857677377,0.262,4224.5,4223.9,0.47342]
[1754857677572,2.01236,4224.5,4224.4,0.4474]
[1754857677778,2.01236,4224.5,4224.4,0.8939]
[1754857678177,1.539,4224.5,4224.4,0.8939]
[1754857678577,1.539,4224.5,4224.4,1.2834]
[1754857679783,2.01236,4224.5,4224.4,1.2834]
[1754857680078,1.539,4224.5,4224.4,0.8939]
[1754857680482,1.539,4224.5,4224.4,0.7132]
[1754857681182,1.539,4224.5,4224.4,1.2834]
[1754857681384,2.01236,4224.5,4224.4,1.2834]
[1754857681982,2.01236,4224.5,4224.4,0.8939]
[1754857682878,2.01236,4224.5,4224.4,1.2834]
[1754857684181,2.01236,4224.5,4224.4,0.8939]
[1754857684581,0.623,4223.8,4223.7,0.8939]
[1754857684789,1.539,4223.8,4223.7,0.4447]
[1754857685083,0.623,4223.5,4223.4,0.4474]
[1754857685387,1.539,4223.5,4223.4,1.287]
[1754857685685,1.277,4223.5,4223.4,2.03618]
[1754857685979,1.277,4223.5,4223.4,1.5627]
[1754857686678,0.75024,4223.8,4223.7,0.3638]
[1754857686879,2.04766,4223.7,4223.6,0.1809]
[1754857687085,2.04766,4223.7,4223.6,0.7176]
[1754857687289,2.04766,4223.7,4223.6,1.2873]
[1754857688281,2.04766,4223.7,4223.6,0.4566]
[1754857688484,2.04766,4223.7,4222.7,0.19937]
[1754857688485,1.08945,4222.8,4222.7,0.19937]
[1754857688688,2.04775,4222.8,4222.7,0.19937]
[1754857690288,2.04775,4222.8,4222.7,0.65597]
[1754857691880,1.5742,4222.8,4222.7,0.91697]
[1754857692086,1.5742,4222.8,4222.7,1.74847]
[1754857692287,1.308,4222.8,4222.7,1.74847]
[1754857693782,0.75032,4223.1,4223.0,1.5491]
[1754857694086,1.78152,4223.1,4223.0,1.5491]
[1754857694490,0.8927,4223.6,4223.5,0.6248]
[1754857694786,0.8927,4223.6,4222.7,1.38327]
[1754857694787,1.0394,4222.8,4222.7,0.82417]
[1754857694987,1.5742,4222.8,4222.7,1.74847]
[1754857695188,1.308,4222.8,4222.7,1.74847]
[1754857695981,0.75025,4223.7,4223.6,0.4419]
[1754857696187,1.78145,4223.7,4223.6,0.9005]
[1754857696388,2.04765,4223.7,4223.6,0.7176]
[1754857696687,2.04765,4223.7,4223.6,0.4566]
[1754857697084,2.04765,4223.7,4223.6,0.7176]
[1754857697385,2.04765,4223.7,4223.6,1.2873]
[1754857697587,2.04765,4223.7,4223.2,0.2618]
[1754857697588,0.78360854,4224.3,4224.2,0.6248]
[1754857697784,1.308,4224.3,4224.2,1.5491]
[1754857698085,0.8927,4224.3,4224.2,1.5491]
[1754857698386,0.8927,4224.3,4224.2,2.02249]
[1754857698588,0.6159,4224.3,4224.2,2.02249]
[1754857698784,0.1737,4224.3,4224.2,2.02249]
[1754857698985,0.6921,4224.6,4224.5,0.4419]
[1754857699187,0.8658,4224.6,4224.5,1.5491]
[1754857699687,1.308,4224.6,4224.5,1.5491]
[1754857705090,0.3579,4223.7,4223.6,1.5491]
[1754857705392,1.5742,4223.7,4223.6,0.4566]
[1754857705594,2.04766,4223.7,4223.3,0.9243]
[1754857705790,1.5742,4223.5,4223.4,0.93008]
[1754857706093,1.5742,4223.5,4223.4,1.5491]
[1754857707585,1.16559,4223.4,4223.2,0.2757]
[1754857707799,1.5742,4223.3,4223.2,0.1809]
[1754857708194,1.5742,4223.3,4223.2,0.4566]
[1754857708495,1.5742,4223.3,4223.2,0.7176]
[1754857711091,1.18356,4224.0,4222.9,0.7176]
[1754857711092,2.04774,4223.0,4222.9,0.7176]
[1754857712296,0.8927,4223.4,4223.3,1.5491]
[1754857712693,1.308,4223.4,4223.3,1.5491]
[1754857713093,1.5742,4223.4,4223.3,0.9005]
[1754857713298,0.47351,4223.1,4222.7,0.19937]
[1754857713494,0.6159,4222.9,4222.8,0.7176]
[1754857713694,1.5742,4222.9,4222.8,0.9005]
[1754857713895,1.5742,4222.9,4222.8,1.2873]
[1754857714096,1.5742,4222.9,4222.8,1.5491]
[1754857715296,0.91575,4222.8,4222.7,0.19937]
[1754857715501,1.5742,4222.8,4222.7,0.91697]
[1754857715704,1.5742,4222.8,4222.7,1.09247]
[1754857715904,1.5742,4222.8,4222.7,1.50217]
[1754857716303,1.5742,4222.8,4222.7,1.75657]
[1754857716607,1.5639,4222.8,4222.7,1.09247]
[1754857717106,1.5639,4222.8,4222.7,0.65597]
[1754857720815,1.5639,4222.8,4221.2,1.18432]
[1754857720816,23.67856,4222.7,4219.9,3.91278421]
[1754857721117,1.25614524,4220.0,4215.4,4.5073542]
[1754857721314,1.25614524,4216.8,4215.4,0.5151]
[1754857721616,1.25614524,4216.8,4215.6,0.2607]
[1754857721617,0.47435,4215.7,4215.6,0.2607]
[1754857722114,0.64174641,4215.7,4215.6,0.2607]
[1754857722311,0.47435,4215.7,4215.6,0.2607]
[1754857722913,0.47435,4215.7,4215.0,0.2607]
[1754857722914,6.0,4215.7,4215.0,0.2607]
[1754857723113,0.23322579,4216.1,4215.0,0.2607]
[1754857723114,0.47437,4215.5,4215.0,0.2607]
[1754857723414,0.47437,4215.5,4213.5,3.10160975]
[1754857723415,1.23809875,4215.3,4213.5,3.10160975]
[1754857723617,0.56564071,4215.2,4214.9,9.5291421]
[1754857723917,0.56564071,4215.1,4215.0,0.9248]
[1754857724114,0.56564071,4215.1,4214.0,0.47453]
[1754857724309,1.23809875,4214.9,4214.4,9.7835421]
[1754857724506,0.56564071,4214.8,4207.5,0.2607]
[1754857724713,1.23233972,4212.7,4209.5,11.8704]
[1754857725013,1.1862,4214.6,4211.0,10.4539421]
[1754857725014,1.23233972,4211.1,4211.0,10.4539421]
[1754857725314,1.23233972,4211.1,4211.0,2.14862721]
[1754857725315,0.56564071,4211.1,4211.0,2.14862721]
[1754857725508,0.56564071,4211.1,4211.0,14.02222721]
[1754857725706,1.64311962,4211.9,4211.1,0.9248]
[1754857725911,1.2265562,4211.8,4211.6,11.8728]
[1754857726106,0.0048,4213.8,4211.4,0.2607]
[1754857726107,0.5176,4214.1,4213.3,11.8704]
[1754857726416,2.93045934,4215.6,4211.4,34.128]
[1754857726417,0.47458,4213.6,4211.7,0.47479]
[1754857726719,0.2559,4214.1,4211.8,3.07116778]
[1754857726907,0.5176,4214.8,4212.0,0.47476]
[1754857727313,0.5176,4214.8,4212.1,24.46750988]
[1754857727513,0.2559,4214.8,4212.5,1.15838648]
[1754857727717,0.5176,4214.8,4212.2,48.8132721]
[1754857727912,0.5176,4214.8,4212.6,3.0329719]
[1754857728214,0.47446,4214.7,4212.3,21.3955421]
[1754857728419,0.47449,4214.4,4212.5,0.4747]
[1754857728815,0.47449,4214.4,4212.6,24.53428342]
[1754857729015,0.47449,4214.4,4212.7,0.47468]
[1754857729217,0.2559,4214.6,4212.8,0.47466]
[1754857729419,24.862,4217.1,4212.8,0.47466]
[1754857729420,0.2559,4215.6,4214.5,11.8664]
[1754857729614,0.2559,4215.6,4213.7,34.16]
[1754857729811,0.47435,4215.7,4215.5,11.864]
[1754857730021,0.47435,4215.7,4214.2,26.938]
[1754857730316,0.47435,4215.7,4215.6,11.8624]
[1754857730506,0.73025,4215.7,4215.6,11.8624]
[1754857730712,0.47447,4214.6,4212.9,34.16]
[1754857730912,0.47445,4214.8,4213.5,0.47458]
[1754857731211,0.47445,4214.8,4213.3,0.4746]
[1754857731412,0.73039,4214.4,4213.3,0.4746]
[1754857731612,0.2559,4215.7,4214.9,11.8648]
[1754857731817,0.2559,4215.7,4213.6,26.89]
[1754857731818,0.47441,4215.2,4213.6,26.89]
[1754857732219,0.47441,4215.2,4215.1,11.864]
[1754857732411,0.99201,4215.2,4215.1,11.864]
[1754857732618,0.5176,4216.1,4215.1,16.75296931]
[1754857732820,0.47437,4215.5,4215.2,21.3891421]
[1754857733119,0.73027,4215.5,4215.2,21.3891421]
[1754857733314,0.73027,4215.5,4215.3,21.3907421]
[1754857733315,0.5176,4215.4,4215.3,21.3907421]
[1754857733519,0.9271,4215.4,4215.3,21.3907421]
[1754857733723,0.9271,4215.4,4215.3,9.5291421]
[1754857735514,0.9271,4215.4,4215.3,10.75296931]
[1754857735515,0.2559,4215.4,4215.3,10.75296931]
[1754857735722,0.5176,4215.4,4215.3,10.75296931]
[1754857736317,0.9271,4215.4,4215.3,9.5291421]
[1754857737120,0.2559,4215.4,4215.3,10.75296931]
[1754857737312,0.4095,4215.8,4215.3,10.75296931]
[1754857737313,0.2617,4215.9,4215.4,0.47438]
[1754857737517,0.2617,4215.9,4215.4,21.8643121]
[1754857737518,0.2559,4215.8,4215.4,21.8643121]
[1754857737717,0.2617,4215.9,4215.7,11.8608]
[1754857737920,0.2617,4215.9,4215.5,0.47436]
[1754857738220,0.2617,4215.9,4215.6,21.3899421]
[1754857738426,0.2559,4215.7,4215.5,21.3899421]
[1754857738821,0.2559,4215.7,4215.6,21.3899421]
[1754857739022,0.2559,4215.7,4215.6,11.8608]
[1754857739218,0.2559,4216.0,4215.6,9.5291421]
[1754857739419,0.2559,4216.3,4215.7,21.3891421]
[1754857739826,0.2559,4216.4,4216.2,11.8592]
[1754857740025,0.7442014,4216.3,4215.8,21.3883421]
[1754857740322,0.7442014,4216.2,4215.9,10.0034521]
[1754857740526,0.7442014,4216.1,4215.8,0.47433]
[1754857740822,0.2617,4216.9,4215.1,1.18602]
[1754857740823,0.7442014,4216.0,4215.9,10.0034621]
[1754857741024,0.7442014,4216.6,4216.5,0.47425]
[1754857741323,0.69660701,4217.5,4216.9,12.3334]
[1754857741625,0.01049,4217.6,4217.5,11.8584]
[1754857742123,0.01049,4217.6,4217.5,21.3875421]
[1754857742326,1.41172,4217.6,4217.5,21.3875421]
[1754857742527,1.00222,4217.6,4217.5,21.3875421]
[1754857742727,0.74052,4217.6,4217.5,21.3875421]
[1754857743223,1.22458118,4217.6,4217.5,21.3875421]
[1754857743520,0.23285118,4217.6,4217.5,21.3875421]
[1754857744027,0.48875118,4217.6,4217.5,21.3875421]
[1754857744328,0.75045118,4217.6,4217.5,21.3875421]
[1754857744523,0.52809,4217.6,4217.5,21.3875421]
[1754857744721,0.93759,4217.6,4217.5,21.3875421]
[1754857745422,1.15995118,4217.6,4217.5,21.3875421]
[1754857745823,0.48875118,4217.6,4217.5,21.3875421]
[1754857746022,0.26639,4217.6,4217.5,21.4373421]
[1754857746228,0.79195118,4217.6,4217.5,20.10669925]
[1754857746430,1.18095118,4217.6,4217.5,9.5291421]
[1754857747622,3.27413642,4217.6,4217.5,9.5291421]
[1754857747930,3.27413642,4217.6,4217.5,19.50215976]
[1754857747931,2.88513642,4217.6,4217.5,19.50215976]
[1754857748326,2.88513642,4217.6,4217.5,16.7625152]
[1754857748631,2.8851492,4217.6,4217.5,16.7625152]
[1754857749535,0.79196396,4217.6,4217.5,16.7625152]
[1754857750031,2.3010558,4217.6,4217.5,16.8123152]
[1754857750226,0.23286396,4217.6,4217.5,16.8123152]
[1754857750622,0.23286396,4217.6,4217.5,16.8621152]
[1754857751727,0.2928,4218.8,4218.5,6.41249381]
[1754857751927,2.13328082,4218.9,4218.7,6.41249381]
[1754857751928,0.47399,4218.9,4218.7,6.41249381]
[1754857752129,0.47399,4218.9,4218.8,6.41249381]
[1754857752329,0.47399,4218.9,4218.4,13.25179135]
[1754857752530,0.389,4218.8,4218.5,0.0498]
[1754857752723,0.2928,4218.6,4218.5,13.25179135]
[1754857752927,0.2928,4218.6,4218.5,0.0498]
[1754857753233,0.2928,4218.6,4218.5,13.25179135]
[1754857753633,0.985,4219.3,4218.6,0.47402]
[1754857753837,0.985,4219.3,4218.6,13.20199135]
[1754857753838,0.2928,4219.2,4218.6,13.20199135]
[1754857754033,0.985,4219.0,4218.7,13.25179135]
[1754857754234,0.2928,4218.9,4218.7,0.0498]
[1754857754533,0.596,4218.9,4218.8,13.20199135]
[1754857754734,1.45893,4219.4,4218.9,0.47398]
[1754857754935,0.985,4219.3,4218.9,13.72577135]
[1754857755135,0.3032,4219.2,4219.0,13.20199135]
[1754857755335,0.2928,4219.1,4219.0,6.83929754]
[1754857755534,0.2928,4219.1,4219.0,0.0498]
[1754857755839,0.2928,4219.1,4219.0,13.25179135]
[1754857756930,1.1,4219.5,4219.1,0.0498]
[1754857757132,1.86672,4219.5,4219.4,6.46229381]
[1754857757332,1.45894,4219.3,4219.2,13.20199135]
[1754857757532,0.47394,4219.3,4218.9,0.47398]
[1754857757734,0.985,4219.2,4218.9,0.47398]
[1754857757934,0.985,4219.1,4219.0,13.20199135]
[1754857758241,1.45896,4219.1,4219.0,13.20199135]
[1754857758437,0.985,4219.1,4219.0,13.67596135]
[1754857758941,1.45896,4219.1,4219.0,13.20199135]
[1754857759638,0.985,4219.1,4219.0,13.20199135]
[1754857759836,0.985,4219.1,4219.0,13.25179135]
[1754857759837,0.2928,4219.1,4219.0,13.25179135]
[1754857760036,0.2928,4219.4,4219.0,13.20199135]
[1754857760231,1.1,4219.5,4219.3,6.93623381]
[1754857760436,1.1,4219.5,4219.4,6.46229381]
[1754857760742,1.3928,4219.5,4219.4,13.25179135]
[1754857761146,1.1,4219.5,4219.4,13.25179135]
[1754857761538,2.55892,4219.5,4219.4,13.20199135]
[1754857761735,2.085,4219.5,4219.4,13.20199135]
[1754857762736,2.55892,4219.5,4219.4,13.20199135]
[1754857762938,2.085,4219.5,4219.4,13.20199135]
[1754857763539,1.696,4219.5,4219.4,13.31159135]
[1754857763840,1.90505603,4219.5,4219.4,13.31159135]
[1754857764045,2.29405603,4219.5,4219.4,13.20199135]
[1754857765135,1.90505603,4219.5,4219.4,13.31159135]
[1754857766543,1.60185603,4219.5,4219.4,13.31159135]
[1754857766944,1.30905603,4219.5,4219.4,13.37129135]
[1754857768046,1.18581,4216.0,4214.2,0.19316663]
[1754857768246,0.47456,4213.9,4213.8,0.2771]
[1754857768442,0.20958646,4213.9,4213.8,0.2771]
[1754857768747,0.82965283,4213.9,4213.4,0.408]
[1754857769048,1.30421283,4213.8,4213.5,0.2816]
[1754857769244,0.82965283,4213.7,4213.5,0.2816]
[1754857769449,0.82965283,4213.6,4213.5,5.46173358]
[1754857769844,0.82965283,4213.6,4213.5,5.86973358]
[1754857770052,0.43381109,4213.6,4213.5,5.86973358]
[1754857770251,0.22422463,4213.6,4213.5,5.86973358]
[1754857770547,0.22422463,4213.6,4213.5,5.73883358]
[1754857771049,0.47457,4213.7,4213.5,5.73883358]
[1754857771250,0.47457,4213.7,4213.6,0.2771]
[1754857771745,0.20958646,4214.5,4213.6,5.58813358]
[1754857771953,0.20853725,4215.0,4213.8,0.9667]
[1754857772250,0.47445,4214.7,4213.9,0.47454]
[1754857772441,0.47445,4214.7,4214.0,0.9667]
[1754857772647,0.47445,4214.7,4214.2,0.5587]
[1754857772847,0.47449,4214.4,4214.3,0.9667]
[1754857773649,0.47449,4214.4,4214.3,6.14683358]
[1754857774746,0.47448,4214.5,4214.4,0.9667]
[1754857774946,0.47447,4214.6,4214.3,5.18013358]
[1754857775341,0.47446,4214.7,4214.3,5.18013358]
[1754857776346,0.47443,4214.9,4214.6,1.1747]
[1754857776653,0.47443,4214.9,4214.8,1.1747]
[1754857777053,0.47441,4215.1,4214.9,1.1747]
[1754857777348,0.47441,4215.1,4215.0,1.1747]
[1754857778349,0.01394,4215.9,4215.1,1.1747]
[1754857778550,0.48826,4215.9,4215.3,0.47439]
[1754857778757,0.01394,4215.9,4215.3,1.64909]
[1754857778955,0.01394,4215.9,4215.2,3.02404745]
[1754857778956,0.01394,4215.9,4215.4,1.1747]
[1754857779160,0.01394,4215.9,4215.8,1.64903]
[1754857779751,0.01394,4215.9,4215.8,1.1747]
[1754857780058,0.00536739,4215.9,4215.8,1.1747]
[1754857780556,0.00536739,4215.9,4215.8,1.64903]
[1754857781152,0.00536739,4215.9,4215.8,6.82916358]
[1754857782346,0.00536739,4215.9,4215.8,6.35483358]
[1754857786562,0.00536739,4215.9,4215.8,6.82916358]
[1754857789655,0.00536739,4215.9,4215.8,34.59916358]
[1754857790264,0.00536739,4215.9,4215.8,6.82916358]
[1754857793364,0.00536739,4215.9,4215.8,34.39916358]
[1754857793759,0.00536739,4215.9,4215.8,6.82916358]
[1754857793957,0.00536739,4215.9,4215.8,34.39916358]
[1754857796367,0.5944,4216.3,4216.2,1.24399]
[1754857797168,1.4022,4216.3,4216.2,1.24399]
[1754857798167,1.4022,4216.3,4216.2,1.51619]
[1754857799360,1.4022,4216.3,4216.2,1.78379]
[1754857799967,1.4022,4216.3,4216.2,2.03659]
[1754857800368,1.7977,4216.8,4216.7,1.51153]
[1754857800665,0.66394421,4217.0,4216.9,2.03651]
[1754857800865,0.8648,4217.2,4217.1,0.99918]
[1754857801061,1.4022,4217.2,4217.1,2.03648]
[1754857801266,1.7977,4217.2,4217.1,1.78368]
[1754857801462,0.9899,4217.2,4216.7,0.405]
[1754857801668,1.7977,4216.8,4216.7,28.45683]
[1754857801876,1.5273,4216.7,4216.6,0.47424]
[1754857802073,1.7977,4216.7,4216.6,0.47424]
[1754857802263,0.47427,4216.4,4215.6,1.18588]
[1754857802466,0.47427,4216.4,4215.2,1.57289]
[1754857802467,0.7273,4215.8,4215.7,33.35647358]
[1754857802666,0.7273,4215.8,4215.7,1.76904]
[1754857802867,0.7273,4215.8,4215.7,34.12617358]
[1754857803166,0.5524,4215.2,4215.1,2.44171]
[1754857803369,0.7273,4215.2,4215.1,2.44171]
[1754857804266,0.5524,4215.2,4215.1,2.44171]
[1754857804463,0.2812,4215.2,4215.1,2.44171]
[1754857804664,0.74696678,4215.5,4215.4,1.26698]
[1754857804974,0.92186678,4215.5,4215.4,29.57268]
[1754857805562,0.92346678,4215.5,4215.4,29.57268]
[1754857805770,1.90668768,4216.2,4215.4,29.57268]
[1754857805771,0.19536678,4215.7,4215.6,2.51825]
[1754857805971,0.19536678,4216.0,4215.9,1.69172]
[1754857806173,0.0008,4216.5,4216.4,1.28406]
[1754857806372,0.36271623,4216.5,4216.4,0.8046]
[1754857806573,0.47428,4216.3,4216.2,0.47429]
[1754857806768,0.76591623,4216.3,4216.2,0.47429]
[1754857807169,1.24018623,4216.3,4216.1,27.018]
[1754857807363,0.167,4216.1,4216.0,27.87291]
[1754857807568,0.76591623,4216.1,4216.0,33.04004358]
[1754857807769,0.76591623,4216.1,4216.0,6.06204358]
[1754857808073,0.36271623,4216.1,4216.0,6.87184358]
[1754857808368,0.19651623,4216.1,4216.0,6.87184358]
[1754857808775,0.19589706,4216.1,4216.0,6.87184358]
[1754857808971,1.24354347,4217.0,4216.6,0.47424]
[1754857809173,0.0008,4217.0,4216.9,0.88701]
[1754857809367,0.0008,4217.0,4216.9,1.69161]
[1754857810368,1.40894347,4217.2,4217.1,0.47418]
[1754857810570,1.43944347,4217.2,4217.1,1.69158]
[1754857810770,0.1967,4217.2,4217.1,1.69158]
[1754857811670,1.24274347,4217.6,4217.4,1.27875]
[1754857811871,0.83703,4217.6,4217.5,0.8046]
[1754857812071,0.7661,4217.6,4217.5,1.27874]
[1754857812273,0.3629,4217.6,4217.5,1.27874]
[1754857812576,1.24274347,4217.9,4217.7,0.47411]
[1754857812785,0.1967,4217.9,4217.8,1.2174]
[1754857812977,1.60564347,4218.2,4217.7,31.94113358]
[1754857813175,0.3629,4218.2,4218.0,0.47408]
[1754857813377,0.3629,4218.2,4218.1,1.2174]
[1754857813777,0.1967,4218.2,4218.1,1.2174]
[1754857813977,1.24274347,4218.8,4218.2,0.47406]
[1754857813978,0.64024,4218.5,4218.2,0.47406]
[1754857814178,0.3629,4218.4,4218.3,0.8046]
[1754857814378,0.7661,4218.4,4218.3,0.8046]
[1754857815082,1.24014,4218.4,4218.3,0.8046]
[1754857815282,0.7661,4218.4,4218.3,0.8046]
[1754857815784,1.24018,4218.0,4217.9,0.959]
[1754857817376,0.5999,4217.9,4217.7,27.1126]
[1754857817680,0.3629,4217.8,4217.7,27.102]
[1754857818178,0.3629,4217.8,4217.7,27.5096]
[1754857818581,0.1967,4218.0,4217.8,0.47411]
[1754857818884,0.1967,4218.1,4218.0,1.2174]
[1754857819482,0.467,4218.7,4218.6,0.8265]
[1754857819678,0.467,4218.7,4218.2,0.8204]
[1754857819679,0.47402,4218.6,4218.2,0.47405]
[1754857819879,0.5363,4218.3,4218.2,2.51795]
[1754857820486,0.9942,4217.7,4217.6,1.2806]
[1754857820787,0.7661,4217.7,4217.6,1.2806]
[1754857821089,0.47413,4217.6,4217.3,27.35176]
[1754857821281,0.7661,4217.4,4217.3,32.53189358]
[1754857821483,0.7661,4217.4,4217.3,32.05773358]
[1754857822884,0.3629,4217.4,4217.3,32.45473358]
[1754857823079,0.3629,4217.4,4217.3,32.86753358]
[1754857823080,0.1967,4217.4,4217.3,32.86753358]
[1754857823385,0.83705,4217.4,4217.3,32.86753358]
[1754857823885,0.3629,4217.4,4217.3,32.86753358]
[1754857824382,0.1967,4217.4,4217.3,32.86753358]
[1754857824780,1.63455,4217.4,4217.3,32.45473358]
[1754857824984,1.1604,4217.4,4217.3,32.86753358]
[1754857825590,0.2703,4218.0,4217.9,1.30059]
[1754857825784,0.467,4218.0,4217.9,2.0439]
[1754857826183,0.2703,4218.0,4217.9,2.0439]
[1754857826383,1.1604,4218.3,4218.2,2.0439]
[1754857826583,0.9942,4218.3,4218.2,2.0439]
[1754857826787,0.7282,4218.3,4218.2,2.0439]
[1754857827487,0.84914345,4219.2,4218.4,0.47403]
[1754857827792,2.14584345,4219.5,4219.1,0.8046]
[1754857828088,0.67063,4219.4,4219.3,1.2174]
[1754857828889,0.1662,4218.8,4218.1,0.47406]
[1754857829187,0.47399,4218.8,4218.7,0.397]
[1754857829382,0.47399,4218.8,4218.7,0.8046]
[1754857829383,0.64019,4218.8,4218.7,0.8046]
[1754857829585,0.47399,4218.8,4218.7,1.2174]
[1754857829787,0.67069,4218.8,4218.7,1.2174]
[1754857829988,1.18499,4218.8,4217.6,26.184]
[1754857830293,0.474,4218.8,4218.4,0.8098]
[1754857830484,0.474,4218.8,4218.5,0.8204]
[1754857830685,0.47404,4218.4,4218.2,0.4128]
[1754857830886,1.24014,4218.4,4218.3,0.8046]
[1754857831186,1.18486,4219.3,4218.0,0.47408]
[1754857831187,0.47402,4218.6,4218.1,1.2174]
[1754857831491,0.1662,4218.9,4218.4,0.47404]
[1754857831691,0.1967,4218.8,4218.4,0.47404]
[1754857831987,0.1967,4218.8,4218.7,0.4076]
[1754857832290,0.66322296,4219.4,4218.7,0.4076]
[1754857832291,1.02612296,4219.4,4218.7,1.2174]
[1754857832495,1.1,4219.5,4219.0,1.2174]
[1754857832783,1.1,4219.5,4218.9,1.2174]
[1754857832784,0.1967,4219.4,4218.9,1.2174]
[1754857832989,1.1,4219.5,4218.7,1.2174]
[1754857833186,1.1,4219.5,4219.4,0.47393]
[1754857833490,1.1,4219.5,4219.4,1.69133]
[1754857833684,1.1,4219.5,4219.4,6.87146358]
[1754857834087,1.1,4219.5,4219.4,6.39753358]
[1754857837088,1.92291,4219.5,4219.4,5.57713358]
[1754857837288,1.21314,4219.3,4219.1,0.7448]
[1754857837593,0.349,4219.2,4219.1,1.21876]
[1754857838495,0.349,4219.2,4219.1,1.63196]
[1754857838987,1.1,4219.5,4219.3,0.47393]
[1754857839188,1.57392,4219.5,4219.3,0.47393]
[1754857839386,1.1,4219.5,4219.4,1.158]
[1754857841188,1.1,4219.5,4219.4,5.18013358]
[1754857841189,1.449,4219.5,4219.4,5.18013358]
[1754857841385,0.86414,4219.3,4219.1,26.71435]
[1754857841580,0.86414,4219.3,4219.1,26.2404]
[1754857841581,0.349,4219.2,4219.1,26.2404]
[1754857841988,0.349,4219.2,4219.1,26.6138]
[1754857842486,0.7392,4219.3,4218.7,0.47399]
[1754857842796,0.1958,4219.0,4218.9,1.158]
[1754857843094,0.82298,4219.0,4218.9,1.158]
[1754857843589,1.21318,4219.0,4218.9,0.3714]
[1754857843790,0.82299,4218.8,4218.7,5.92493358]